Cogmind - Beta 15 @@@ ROGUE MODE // 2025.07.21 @ 17:19:46 Player: shapeshifter Result: Destroyed by G-34 Mercenary with Small Laser Performance ------------- Evolutions (0) 0 Regions Visited (2) 400 Robots Destroyed (6) 30 Value Destroyed (76) 76 Prototype IDs (0) 0 Alien Tech Used (0) 0 Bonus (0) 0 TOTAL SCORE: 506 Bonus ------- None Cogmind --------- Core Integrity 0/250 Matter 270/300 Energy 83/100 System Corruption 0% Temperature Cool (6) Movement Walking (120) Location -10/Subcaves Parts ------- > --- POWER (1) -------- (None) > --- PROPULSION (2) --- Aluminum Leg Aluminum Leg > --- UTILITY (2) ------ Small Storage Unit > --- WEAPON (2) ------- EM Pulse Gun > --- INVENTORY (8) ---- ECM Suite Hacking Suite Datajack Peak State ------------ > --- POWER ------------ Light Ion Engine > --- PROPULSION ------- Compact Wheel Compact Wheel > --- UTILITY ---------- Small Storage Unit Seismic Detector > --- WEAPON ----------- Medium Laser Light Assault Rifle > --- INVENTORY -------- Light Ion Engine Light Treads Light Treads Aluminum Leg Aluminum Leg Hacking Suite EM Pulse Gun Datajack [Rating: 8] Favorites ----------- Power Light Ion Engine Engine Light Ion Engine Propulsion Compact Wheel Leg Aluminum Leg Wheel Compact Wheel Utility Small Storage Unit Device Seismic Detector Storage Small Storage Unit Weapon Light Assault Rifle Energy Gun Medium Laser Ballistic Gun Light Assault Rifle Build | -11 -10 -10 ------- Run | Yrd Mat Sub Slots Evolved . | . . . Power . | . . . Propulsion . | . . . Utility . | . . . Weapon . | . . . Parts Attached 11 | 9 . 2 Power 2 | 1 . 1 Engine 2 | 1 . 1 Core . | . . . Reactor . | . . . Propulsion 4 | 3 . 1 Treads . | . . . Leg 2 | 1 . 1 Wheel 2 | 2 . . Hover . | . . . Flight . | . . . Utility 2 | 2 . . Device 1 | 1 . . Storage 1 | 1 . . Processor . | . . . Hackware . | . . . Protection . | . . . Artifact . | . . . Weapon 3 | 3 . . Energy Gun 2 | 2 . . Energy Cannon . | . . . Ballistic Gun 1 | 1 . . Ballistic Cannon . | . . . Launcher . | . . . Special Weapon . | . . . Impact Weapon . | . . . Slashing Weapon . | . . . Piercing Weapon . | . . . Special Melee Weapon . | . . . Unidentified Prototypes . | . . . Parts Lost 7 | . . 7 Power 2 | . . 2 Propulsion 2 | . . 2 Utility 1 | . . 1 Weapon 2 | . . 2 Highest Loss Streak 6 | . . 6 To Critical Strikes . | . . . Average Backups 5 | 5 6 5 Power . | . 1 . Propulsion 2 | 3 3 . Utility . | . . 2 Weapon . | . 1 . Tool/Special . | . . . Unused Backups 5 | . 2 3 Power . | . . . Propulsion 2 | . 2 . Utility 2 | . . 2 Weapon . | . . . Tool/Special 1 | . . 1 Average Slot Usage (%) 78 | . 100 65 Engine 14 | . 14 14 Leg 8 | . . 13 Wheel 17 | . 28 11 Device 7 | . 14 3 Storage 14 | . 14 14 Energy Gun 7 | . 14 3 Ballistic Gun 7 | . 14 3 Peak Build Rating 8 | 7 8 7 Average Rating 5 | 5 7 4 On Entrance 4 | . 7 7 Naked Turns . | . . . Heaviest Build 12 | 12 12 12 Greatest Support 32 | 32 32 32 Greatest Overweight (x) 2 | 2 . 2 Average Overweight (x) . | . . . Largest Inventory Capacity 8 | 8 8 8 Average Capacity 7 | 7 8 8 Most Carried 8 | 8 8 7 Average Carried 5 | 5 7 5 Final Capacity 8 | 8 8 8 Final Carried 7 | 6 7 3 Class Distribution -------------------- 100% | Mutant Dominant Class ---------------- Mutant | -10/Materials Mutant | -10/Subcaves Resources | -11 -10 -10 ----------- Run | Yrd Mat Sub Matter Collected 316 | 316 . . Remotely . | . . . Salvage Created 166 | 106 . 60 Parts 16 | 12 . 4 Haulers Intercepted . | . . . Recyclers Shooed . | . . . Parts Field Recycled . | . . . Retrieved Matter . | . . . Parts Self-Destructed 8 | . . 8 Prevented 1 | . . 1 Kills | -11 -10 -10 ------- Run | Yrd Mat Sub Combat Hostiles Destroyed 1 | . . 1 Guns 1 | . . 1 Classes Destroyed 3 | 2 . 1 Worker 1 | 1 . . Tunneler 4 | 4 . . Grunt 1 | . . 1 Best Kill Streak 1 | 1 . 1 Combat Bots Only 1 | . . 1 Max Kills in Single Turn 1 | 1 . 1 Gunslinging . | . . . Exploded . | . . . Melee . | . . . Uniques/NPCs Destroyed . | . . . Combat | -11 -10 -10 -------- Run | Yrd Mat Sub Hostile Shots Fired 93 | . . 93 Missed 38 | . . 38 Hits 55 | . . 55 Projectile 55 | . . 55 Damage Taken 777 | . . 777 Core 250 | . . 250 Absorbed by Shields . | . . . Core Remaining (%) 100 | 100 . . Volleys Fired 32 | 19 1 12 Largest 2 | 2 2 2 Hottest 70 | 70 70 70 Shots Fired 57 | 38 2 17 Gun 57 | 38 2 17 Cannon . | . . . Launcher . | . . . Special . | . . . Kinetic 25 | 19 1 5 Thermal 12 | 6 1 5 Explosive . | . . . Electromagnetic 20 | 13 . 7 Robot Hit Streak 10 | 8 9 10 Robot Miss Streak 3 | 3 . 3 Penetration Max . | . . . Secondary Targets . | . . . Shots Hit Robots 37 | 23 2 12 Core Hits 14 | 8 1 5 Critical Kills . | . . . Critical Parts Destroyed . | . . . Critical Strikes 3 | 2 1 . Burn 3 | 2 1 . Melee Attacks . | . . . Impact . | . . . Slashing . | . . . Piercing . | . . . Sneak Attacks . | . . . Combat Hostiles . | . . . Follow-up Attacks . | . . . Damage Inflicted 415 | 243 22 150 Guns 415 | 243 22 150 Cannons . | . . . Explosions . | . . . Melee . | . . . Ramming . | . . . Kinetic 140 | 99 9 32 Thermal 112 | 62 13 37 Explosive . | . . . Electromagnetic 163 | 82 . 81 Impact . | . . . Slashing . | . . . Piercing . | . . . Highest Corruption . | . . . Average Corruption . | . . . Corruption Purged . | . . . Corruption Blocked . | . . . Overload Shots . | . . . Overflow Damage . | . . . Projectiles . | . . . Explosions . | . . . Melee . | . . . Knockbacks . | . . . Impact . | . . . Kinetic . | . . . Secondary . | . . . Self-Inflicted Damage . | . . . Shots . | . . . Rammed . | . . . Targets Rammed . | . . . Kicked . | . . . Crushed . | . . . Highest Temperature 40 | 40 30 11 Average Temperature 18 | 21 18 4 Received Heat Transfer 384 | . . 384 Siege Activations . | . . . Martial Activations . | . . . Shielding Activations . | . . . Robots Disrupted . | . . . Combat Hostiles . | . . . Robots Corrupted . | . . . Combat Hostiles . | . . . Parts Fried . | . . . Impact Corruptions . | . . . Robots Melted . | . . . Combat Hostiles . | . . . Parts Melted 1 | 1 . . Heat Transferred 555 | 333 111 111 Parts Sabotaged . | . . . Parts Stolen . | . . . Parts Stripped . | . . . Power Chain Reactions . | . . . Alert | -11 -10 -10 ------- Run | Yrd Mat Sub Maximum Alert Level . | . . . Low Security (%) 100 | 100 100 . Level 1 . | . . . Level 2 . | . . . Level 3 . | . . . Level 4 . | . . . Level 5 . | . . . High Security . | . . . Max Security . | . . . Peak Influence 5 | 5 . . Initial . | . . . Average . | 1 . . Influence Increases 55 | 25 . 30 Destroy 0b10 Robot/C 20 | . . 20 Destroy 0b10 Robot/NC 25 | 25 . . Destroy Leader 10 | . . 10 Influence Decreases 45 | 25 . 20 Time Decay 35 | 25 . 10 Lost Part 10 | . . 10 Squads Dispatched . | . . . Investigation . | . . . Extermination . | . . . Reinforcement . | . . . Assault . | . . . Garrison . | . . . Intercept . | . . . Searches Triggered . | . . . Construction Impeded . | . . . Haulers Reinforced . | . . . Active Scanning Responses . | . . . Cargo Convoy Interrupts . | . . . Stealth | -11 -10 -10 --------- Run | Yrd Mat Sub Distress Signals . | . . . Communications Jammed . | . . . Distress Signals . | . . . Times Spotted 7 | . 1 6 Peak Tracking Total 5 | . 1 5 Tactical Retreats 1 | . . 1 Traps | -11 -10 -10 ------- Run | Yrd Mat Sub Traps Triggered . | . . . Indirectly . | . . . Trap Hack Attempts . | . . . Triggered . | . . . Disarmed . | . . . Reprogrammed . | . . . Reused . | . . . Traps Extracted . | . . . Installed . | . . . Triggered . | . . . Machines | -11 -10 -10 ---------- Run | Yrd Mat Sub Machines Disabled . | . . . Max in Single Turn . | . . . Machines Repaired . | . . . Machines Dismantled . | . . . Machines Sabotaged . | . . . Overloaded Fab Kills . | . . . Hacking | -11 -10 -10 --------- Run | Yrd Mat Sub Machines Accessed . | . . . Terminals . | . . . Fabricators . | . . . Repair Stations . | . . . Recycling Units . | . . . Scanalyzers . | . . . Garrison Access . | . . . Total Hacks . | . . . Successful . | . . . Failed . | . . . Catastrophic . | . . . Database Lockouts . | . . . Manual . | . . . Terminals . | . . . Fabricators . | . . . Repair Stations . | . . . Recycling Units . | . . . Scanalyzers . | . . . Garrison Access . | . . . Terminal Hacks . | . . . Fabricator Hacks . | . . . Repair Station Hacks . | . . . Recycling Unit Hacks . | . . . Scanalyzer . | . . . Garrison Access Hacks . | . . . Unauthorized Hacks . | . . . Terminals . | . . . Fabricators . | . . . Repair Stations . | . . . Recycling Units . | . . . Scanalyzers . | . . . Garrison Access . | . . . Data Cores Recovered 1 | . 1 . Used . | . . . Hacking Detections . | . . . Full Trace Events . | . . . Feedback Events . | . . . Feedback Blocked . | . . . Robot Schematics Acquired . | . . . Robots Built . | . . . Authchips . | . . . Time . | . . . Total Robot Build Rating . | . . . Part Schematics Acquired . | . . . Parts Built . | . . . Authchips . | . . . Time . | . . . Total Part Build Rating . | . . . Parts Repaired . | . . . Time . | . . . Parts Recycled . | . . . Recycled Matter . | . . . Retrieved Matter . | . . . Retrieved Components . | . . . Parts Scanalyzed . | . . . Part Schematics Acquired . | . . . Parts Damaged . | . . . Bothacking | -11 -10 -10 ------------ Run | Yrd Mat Sub Used RIF Installer . | . . . Robots Hacked . | . . . Non-combat . | . . . Combat . | . . . Robot Hacks Applied . | . . . Relay Couplers Released . | . . . Fabnet Peak Effective % . | . . . Robots Rewired . | . . . Allies Hacked . | . . . Hacks Repelled . | . . . Allies | -11 -10 -10 -------- Run | Yrd Mat Sub Total Allies . | . . . Largest Group . | . . . Highest-Rated Group . | . . . Highest-Rated Ally . | . . . Total Orders . | . . . Ally Attacks . | . . . Total Damage . | . . . Kills . | . . . Allies Corrupted . | . . . Allies Melted . | . . . Intel | -11 -10 -10 ------- Run | Yrd Mat Sub Active Infowar (turns) 223 | 12 148 63 Seismic 223 | 12 148 63 Robot Analysis Total . | . . . Derelict Logs Recovered 1 | . . 1 Drone Launches . | . . . Drone Recoveries . | . . . Exploration | -11 -10 -10 ------------- Run | Yrd Mat Sub Turns Passed 617 | 226 148 243 Spaces Moved 449 | 154 109 186 Core 51 | 37 . 14 Treads . | . . . Legs 92 | . . 92 Wheels 306 | 117 109 80 Hover . | . . . Flight . | . . . Fastest Speed 50 | 50 100 100 Average Speed 104 | 96 100 113 Slowest Speed 150 | 150 100 150 Overloaded Moves . | . . . Propulsion Burnouts . | . . . Robots Hopped . | . . . Potential Cave-ins . | . . . Cave-ins Triggered . | . . . Exploration Rate (%) 18 | 6 29 20 Regions Visited 2 Branch Regions 1 Pre-discovered Areas . | . . . Known Exits Taken . | . . . Unknown Exits Taken 2 | 1 1 . Scrap Searched . | . . . Spaces Dug . | . . . Terrain Destroyed . | . . . Melee . | . . . Projectile . | . . . AOE . | . . . Terrain Rammed . | . . . Walls Destroyed . | . . . Machines Disabled . | . . . Actions | -11 -10 -10 --------- Run | Yrd Mat Sub Total 543 | 194 147 202 Wait 33 | . 33 . Move 447 | 153 108 186 Hop . | . . . Pick Up 15 | 12 3 . Fast Attach 1 | 1 . . Attach 10 | 6 . 4 Detach . | . . . Swap 3 | 3 . . Drop 2 | . 2 . Fire 32 | 19 1 12 Melee . | . . . Ram . | . . . Kick . | . . . Crush . | . . . Escape Stasis . | . . . Rewire . | . . . Trap . | . . . Miscellaneous . | . . . Route ------- -11/Scrapyard -10/Materials (discovered 2 exits: [*Mat] / [*Sub]) -10/Subcaves History --------- Turn | Location | Event 2 | -11/Scrapyard | Met Revision 17 3 | -11/Scrapyard | Discovered new exit (range 16) 227 | -11/Scrapyard | Entered Materials 228 | -10/Materials | Met a group of wandering Federalists 312 | -10/Materials | Build established: Mutant 366 | -10/Materials | Discovered new exit (range 13) 369 | -10/Materials | Discovered new exit (range 8) 375 | -10/Materials | Entered Subcaves 376 | -10/Subcaves | Continued accompanying wandering Federalists (1) 410 | -10/Subcaves | Shifting Twisted Machinery released Battle Rifle 441 | -10/Subcaves | A swath of the cavern ceiling suddenly collapsed 469 | -10/Subcaves | Core integrity fell below 50% 506 | -10/Subcaves | Core integrity fell below 20% 522 | -10/Subcaves | Lost 6 parts (1p2n1u2w) 618 | -10/Subcaves | Destroyed by G-34 Mercenary with Small Laser Last Messages --------------- 00381_ Acquired derelict log, extracted data. Data stored: Storage entrances (x1). 00383_ Y4-Q7N(g) destroyed. Battle Rifle falls loose from the Twisted Machinery. 00427_ Med. Laser destroyed. 00436_ Lgt. Assault Rifle destroyed. 00438_ Seismic Detector destroyed. A swath of the cavern ceiling suddenly collapses. 00466_ Com. Wheel destroyed. 00491_ Lgt. Ion Engine destroyed. 00606_ G-47 Trooper destroyed. 00608_ Subatomizers dissect the Corrupted Aluminum Leg. 00611_ Corrupted Aluminum Leg self-destruct mechanism malfunctions. 00614_ Lgt. Nuclear Core fries itself beyond repair. 00614_ Lgt. Ion Engine destroyed. Map ----- +----------------------------------------------------+ | ?????????????????????????????????????????????????? | | ?????????????????????????????????????????????????? | | ?????????????????????????????????????????????????? | | ????????????????????????####??????####???????????? | | ???????????????????????## ##???## ###??????##?? | | ???????????????????????# ##??# #??????# ## | | ??????????????????# ## #### #???????# | | ???????????????????? #?????????# | | ???????????????????????????# #????????## | | ?????????????????##???????## ########## | | ?????????????????# ##??#### ## ## | | ???????? ######## ### ##### # # | | ??????? ##???## ## | | ??????? #?????## ## ### # | | ??????? ##?????#########?# ## | | ??????? ########????????# # | | ??????????## ## ## #??# # | | ???????????# ???# ### #???### | | ???????????? ?????# ?## #??????# | | ??????????????????# ?## ## #?????? | | ??????????????????##?# #??### ##?????? | | ?????????????????????## # !=##?##?????????? | | ???????????????????########% ## #### ##????## | | ??????????????????## #### g ???# | | ??????????????????# ## ??? # | | ???????????????????# @ # ??? # | | ???????????????????### ##??????? # | | ?????????????????????## ###### ##????????##### | | ??????????????????????## ##????? ##?????????????? | | ???????????????????????###??????? #??????????????? | | ????????????????????????????????? #??????????????? | | ?????????????????????????????????????????????????? | | ?????????????????????????????????????????????????? | | ?????????????????????????????????????????????????? | | ?????????????????????????????????????????????????? | | ?????????????????????????????????????????????????? | | ?????????????????????????????????????????????????? | | ?????????????????????????????????????????????????? | | ?????????????????????????????????????????????????? | | ?????????????????????????????????????????????????? | | ?????????????????????????????????????????????????? | | ?????????????????????????????????????????????????? | | ?????????????????????????????????????????????????? | | ?????????????????????????????????????????????????? | | ?????????????????????????????????????????????????? | | ?????????????????????????????????????????????????? | | ?????????????????????????????????????????????????? | | ?????????????????????????????????????????????????? | | ?????????????????????????????????????????????????? | | ?????????????????????????????????????????????????? | +----------------------------------------------------+ Best States ------------- Heat Dissipation 25 Energy Generation 10 Energy Capacity 125 Matter Stores 300 Matter Capacity 300 Sight Range 16 Terrain Scan Density 10 Evasion (%) 55 Item Schematics ----------------- None Robot Schematics ------------------ None Fabricated ------------ Nothing Repaired ---------- Nothing Alien Tech Used ----------------- None Achievements -------------- None Challenges ------------ None Game ------ Seed ColdPhysicsDriveblaster Manual? 0 Play Time 00:08:15 Cumulative 29.0 hours Start 2025.07.21 @ 17:12:23 End 2025.07.21 @ 17:19:46 Sessions 1 Manual Loads 0 Difficulty Rogue Special Mode None Game No. 77 Rogue 77 Adventurer 0 Explorer 0 Win Type - Total 0 Types 0/0/0/0/0/0/0/0/0/0 Lore% 25 Gallery% 30 Achievement% 24 Wizard Run 0 Options --------- Layout 1 ASCII 0 Keyboard 0 Movement Mouse Keybinds 0 Fullscreen 1 Font 24/Smallcaps Map View 50x35 Zoom Use 0% Tactical HUD 1 Map Filters NONE Filters NONE Steam 1 RUN: aea82587-b984-4d3d-b016-e5636926f6ec